Cogmind - Beta 16 @@@ ROGUE MODE // 2026.04.03 @ 00:41:53 Player: ChimerasOfTheMeadows Result: Destroyed by H-66 Slayer with Gauss Rifle Performance ------------- Evolutions (5) 2500 Regions Visited (17) 3400 Robots Destroyed (240) 1200 Value Destroyed (9001) 9001 Prototype IDs (55) 1100 Alien Tech Used (0) 0 Bonus (2032) 2032 TOTAL SCORE: 19233 Bonus ------- High Alert Combat Kills 1052 Follower Combat Kills 259 Entered Garrisons 200 Used RIF Installer 500 Aligned with FarCom 300 Met Data Miner 300 Friendly Fire -579 Cogmind --------- Core Integrity 0/1000 Matter 268/300 Energy 99/100 System Corruption 16% Temperature Cool (0) Movement Core (50) Location -5/Upper Caves Parts ------- > --- POWER (1) -------- (None) > --- PROPULSION (4) --- (None) > --- UTILITY (8) ------ Advanced Weight Redist. System > --- WEAPON (4) ------- (None) > --- INVENTORY (5) ---- Neutrino Core Advanced Heat Sink Compact Battery (200) Compact Battery (200) Long-range Proton Cannon Peak State ------------ > --- POWER ------------ Reinforced Deuterium Engine > --- PROPULSION ------- Medium Treads Improved Medium Treads Armored Huge Wheel > --- UTILITY ---------- Improved Cooling System Huge Storage Unit Structural Scanner Advanced Signal Interpreter Improved Heavy Armor Plating Advanced Field Recycling Unit Mini Drone Bay > --- WEAPON ----------- Heavy Plasma Cannon Mass Driver Mass Driver Improved Remote Datajack > --- INVENTORY -------- Micro Fission Core Medium Treads Medium Treads Carbon-fiber Leg Thunder Leg Advanced Heat Sink Microactuators Improved Medium Armor Plating Layered Light Armor Plating Layered Medium Armor Plating Improved Thermal Shield Force Field Improved Hacking Suite Advanced Hacking Suite Relay Coupler [Hunter] High-powered Shock Rifle Variable Charge Gun Long-range Proton Cannon Plasma Cannon Magnetic Acceleration Cannon Hypervelocity Gauss Cannon Improved Remote Datajack Plasma Cutter Molecular Deconstructor [Rating: 90] Favorites ----------- Power Reinforced Deuterium Engine Engine Reinforced Deuterium Engine Power Core Nuclear Core Propulsion Light Treads Treads Light Treads Leg Flexi-carbon Leg Wheel Armored Huge Wheel Hover Unit Aerolev Unit Flight Unit Improved VTOL Module Utility Huge Storage Unit Device Improved Cooling System Storage Huge Storage Unit Processor Advanced Visual Processing Unit Hackware Hacking Suite Protection Hardened Light Armor Plating Weapon Heavy Plasma Cannon Energy Gun Beam Rifle Energy Cannon Heavy Plasma Cannon Ballistic Gun Improved Assault Rifle Ballistic Cannon Magnetic Acceleration Cannon Launcher Rocket Launcher Special Weapon Improved Remote Datajack Slashing Weapon Segregator Piercing Weapon Lance Build | -11 -10 -10 -10 -9 -8 -8 -8 -7 -7 -7 -6 -6 -6 -6 -5 -5 -5 ------- Run | Yrd Mat Min Exi Min Mat Sto Gar Fac Low Low Fac Low Low Dat Pro Fac Upp Slots Evolved 10 | . . . . . 4 . . 2 . . 2 . . . . 2 . Power . | . . . . . . . . . . . . . . . . . . Propulsion 2 | . . . . . 1 . . 1 . . . . . . . . . Utility 6 | . . . . . 2 . . 1 . . 1 . . . . 2 . Weapon 2 | . . . . . 1 . . . . . 1 . . . . . . Parts Attached 209 | 7 15 9 1 4 29 17 27 7 6 7 19 18 3 . 10 24 6 Power 18 | 1 1 1 . . 2 1 2 1 1 1 3 1 . . 1 . 2 Engine 14 | 1 1 1 . . 1 1 1 1 . 1 3 1 . . 1 . 1 Core 4 | . . . . . 1 . 1 . 1 . . . . . . . 1 Reactor . | . . . . . . . . . . . . . . . . . . Propulsion 44 | 2 4 3 . 2 3 6 7 3 2 1 3 1 . . 2 3 2 Treads 24 | . 2 . . . 3 4 6 2 . . 2 1 . . 2 2 . Leg 4 | . . . . . . . . . 2 . . . . . . . 2 Wheel 14 | 2 2 3 . 2 . . 1 1 . 1 1 . . . . 1 . Hover 1 | . . . . . . 1 . . . . . . . . . . . Flight 1 | . . . . . . 1 . . . . . . . . . . . Utility 67 | 2 4 2 . 1 11 . 11 1 1 2 8 8 1 . 6 7 2 Device 32 | 1 1 1 . 1 6 . 6 . . 1 2 4 1 . 2 5 1 Storage 5 | 1 3 . . . . . . . . . . . . . . . 1 Processor 9 | . . . . . 1 . 1 . 1 1 2 2 . . 1 . . Hackware 7 | . . . . . . . 2 1 . . 2 1 . . 1 . . Protection 14 | . . 1 . . 4 . 2 . . . 2 1 . . 2 2 . Artifact . | . . . . . . . . . . . . . . . . . . Weapon 80 | 2 6 3 1 1 13 10 7 2 2 3 5 8 2 . 1 14 . Energy Gun 19 | . 2 . . . 5 4 1 2 . 1 . . . . . 4 . Energy Cannon 7 | . . . 1 . 1 1 . . . . 1 1 . . . 2 . Ballistic Gun 22 | 2 1 . . 1 5 4 4 . 1 . 2 . 2 . . . . Ballistic Cannon 12 | . 1 1 . . . . . . . . 1 3 . . . 6 . Launcher 8 | . 1 2 . . 2 . 1 . . 1 . 1 . . . . . Special Weapon 8 | . 1 . . . . 1 . . 1 1 . 3 . . . 1 . Impact Weapon . | . . . . . . . . . . . . . . . . . . Slashing Weapon 1 | . . . . . . . 1 . . . . . . . . . . Piercing Weapon 3 | . . . . . . . . . . . 1 . . . 1 1 . Special Melee Weapon . | . . . . . . . . . . . . . . . . . . Unidentified Prototypes 16 | . . . . . 4 10 . 1 1 . . . . . . . . Corrupted Parts 5 | . . . . . . . . . 1 . . 2 . . 2 . . System Corruption 7 | . . . . . . . . . 1 . . 4 . . 2 . . Parts Lost 44 | . . 3 . . . . 4 2 7 1 . 1 1 . 3 22 . Power 3 | . . 1 . . . . 1 . . . . . . . . 1 . Propulsion 13 | . . 2 . . . . . 2 1 1 . . . . 1 6 . Utility 14 | . . . . . . . 2 . 1 . . 1 1 . 1 8 . Weapon 14 | . . . . . . . 1 . 5 . . . . . 1 7 . Highest Loss Streak 14 | . . 3 . . . . 1 2 3 1 . 1 1 . 3 14 . To Critical Strikes 2 | . . . . . . . . . . . . . . . 1 1 . Average Backups 22 | 5 12 23 23 23 22 23 23 22 20 22 22 22 22 23 22 23 6 Power . | . 1 . . . . 1 . . . . 1 1 1 1 1 1 1 Propulsion 1 | 2 2 1 4 3 1 2 2 . . . . . 1 2 1 2 . Utility 10 | . 4 11 12 10 11 10 11 11 9 10 10 10 10 10 10 9 2 Weapon 7 | 1 4 7 5 6 7 7 7 8 7 8 8 8 7 8 6 6 1 Tool/Special . | . . . . . . . . . . . . . . . . . . Unused Backups 55 | 2 6 . 1 2 10 1 2 1 . . 5 2 1 . 1 13 8 Power 5 | . 1 . . . 1 . . . . . 1 . . . . 1 1 Propulsion 6 | 1 1 . . . 1 . . . . . . . . . . 3 . Utility 23 | . 2 . . 2 1 . 1 . . . 4 1 . . 1 7 4 Weapon 18 | 1 2 . 1 . 6 1 1 . . . . 1 1 . . 2 2 Tool/Special 3 | . . . . . 1 . . 1 . . . . . . . . 1 Average Slot Usage (%) 89 | . 99 84 100 100 99 99 92 85 83 83 88 86 85 66 88 83 15 Engine 5 | . 14 2 14 14 2 9 8 5 2 3 5 6 6 6 5 4 . Core 1 | . . . . . 6 . . 1 4 3 . . . . . . . Treads 14 | . 11 21 . . 23 26 15 12 1 . 10 13 13 13 12 16 . Leg 1 | . . . . . . . . . 4 15 1 . . . . . 6 Wheel 6 | . 16 4 28 28 3 . 5 6 6 5 6 6 6 6 6 2 . Device 10 | . 14 13 . 7 11 8 9 10 10 6 7 8 7 13 13 18 . Storage 8 | . 14 14 14 14 9 9 9 7 7 7 6 6 6 6 6 4 3 Processor 6 | . . . . . 4 9 9 7 11 11 10 13 11 6 6 4 . Hackware 1 | . . . . . . . . 3 7 3 3 . . . 2 2 . Protection 5 | . . . 14 6 10 8 8 5 . . 6 6 6 6 5 3 . Energy Gun 4 | . 5 12 13 . 5 . 3 4 7 8 5 . . . . 3 . Energy Cannon 3 | . . . 3 14 2 8 . . . . 4 10 9 . 8 6 . Ballistic Gun 8 | . 12 1 . 14 17 17 18 14 13 8 8 . 4 . 2 . . Ballistic Cannon 1 | . 4 . . . . . . . . . 2 4 4 1 6 4 . Launcher 2 | . . 12 10 . . . 2 . . 2 . 1 1 . 1 . . Special Weapon 2 | . 5 . . . 1 . . . . 2 3 5 4 2 4 3 . Peak Build Rating 90 | 7 12 15 21 22 36 46 44 55 58 58 69 80 79 76 79 90 25 Average Rating 43 | 5 9 11 16 20 28 35 38 49 50 54 64 76 76 59 74 75 14 On Entrance 39 | . 7 12 15 20 22 36 35 42 44 57 53 67 78 76 76 70 7 Avg Prop Armor Cover (%) 9 | . 11 22 . . 10 . 6 9 9 9 10 10 8 10 9 11 . Naked Turns 101 | . . . . . . . . . . . . . . . . 60 41 Heaviest Build 169 | 13 94 99 105 104 113 117 118 118 105 107 133 142 142 141 143 169 43 Greatest Support 116 | 20 40 40 20 22 60 60 60 28 28 40 38 28 28 28 30 116 43 Greatest Overweight (x) 31 | . 4 31 5 5 9 2 5 4 3 3 4 5 5 5 5 5 . Average Overweight (x) 3 | . 2 9 4 4 3 1 2 3 3 2 3 4 4 4 4 2 . Largest Inventory Capacity 25 | 8 25 25 25 25 25 25 25 25 25 25 25 25 25 25 25 25 20 Average Capacity 24 | 7 15 25 25 25 25 25 25 25 25 25 25 25 25 25 25 24 14 Most Carried 25 | 8 24 25 25 25 25 25 25 25 25 25 25 25 25 25 25 25 10 Average Carried 23 | 5 12 23 24 24 24 24 24 24 22 24 24 24 24 25 23 24 6 Final Capacity 25 | 8 25 25 25 25 25 25 25 25 25 25 25 25 25 25 25 5 5 Final Carried 25 | 8 24 25 25 25 25 25 25 23 24 24 25 25 25 25 25 3 5 Scrap Suit Usage (%) 2 | . . . . . . . . . . 43 2 . . . . . . Parts Cannibalized 2 | . . . . . . . . . . 2 . . . . . . . Class Distribution -------------------- 29% | Skirmisher 26% | Mutant 17% | Scavenger-Skirmisher 11% | Bothacker-Skirmisher 3% | Scavenger-Tank 3% | Bothacker-Gunner 3% | Tank Dominant Class ---------------- Mutant | -10/Materials Mutant | -10/Mines Mutant | -10/Exiles Mutant | -9/Mines Skirmisher | -8/Materials Scavenger-Skirmisher | -8/Storage Scavenger-Skirmisher | -8/Garrison Bothacker-Skirmisher | -7/Factory Scavenger-Gunner | -7/Lower Caves Bothacker-Skirmisher | -7/Lower Caves Bothacker-Skirmisher | -6/Factory Skirmisher | -6/Lower Caves Skirmisher | -6/Lower Caves Mutant | -6/Data Miner Skirmisher | -5/Proximity Caves Scavenger-Tank | -5/Factory Mutant | -5/Upper Caves Resources | -11 -10 -10 -10 -9 -8 -8 -8 -7 -7 -7 -6 -6 -6 -6 -5 -5 -5 ----------- Run | Yrd Mat Min Exi Min Mat Sto Gar Fac Low Low Fac Low Low Dat Pro Fac Upp Matter Collected 9410 | 302 478 700 . 88 1023 754 1897 410 414 326 406 397 628 . 435 824 328 Remotely 687 | . . 103 . . 272 . 135 . . . . . . . 49 128 . Salvage Created 10142 | 149 493 152 . 74 1109 1317 1869 584 564 508 452 9 671 . 364 1596 231 Parts 486 | 11 27 5 . 2 51 61 124 13 26 38 22 . 22 . 21 55 8 Haulers Intercepted 9 | . 1 . . . 2 3 . . . . 1 . . . . 2 . Recyclers Shooed 18 | . . 1 . 2 6 4 . . . . 2 . . . . 3 . Parts Field Recycled 42 | . . . . . . . . . . . . . . . . 42 . Retrieved Matter 488 | . . . . . . . . . . . . . . . . 488 . Parts Self-Destructed 82 | . . . . . . . . . 18 21 . 4 25 . 14 . . Prevented 15 | . . . . . . . . . 4 6 . 2 . . 3 . . Parts Restored . | . . . . . . . . . . . . . . . . . . Kills | -11 -10 -10 -10 -9 -8 -8 -8 -7 -7 -7 -6 -6 -6 -6 -5 -5 -5 ------- Run | Yrd Mat Min Exi Min Mat Sto Gar Fac Low Low Fac Low Low Dat Pro Fac Upp Combat Hostiles Destroyed 186 | . 7 14 . . 11 14 49 9 7 19 4 1 13 . 14 24 . Melee 1 | . . . . . . . 1 . . . . . . . . . . Guns 84 | . 2 2 . . 11 10 36 3 7 5 2 . 2 . . 4 . Cannons 42 | . 5 5 . . . 4 1 . . . 2 . 3 . 5 17 . AOE 57 | . . 7 . . . . 11 6 . 14 . 1 8 . 8 2 . Classes Destroyed 24 | 2 5 2 . . 3 . 3 3 3 . . . . . 2 . 1 Worker 1 | . . . . . . . . 1 . . . . . . . . . Builder 8 | . 2 . . . 2 1 . . . . 1 . . . . 2 . Tunneler 5 | 3 . . . . 1 1 . . . . . . . . . . . Hauler 9 | . 1 . . . 2 3 . . . . 1 . . . . 2 . Recycler 22 | 1 1 1 . 1 6 6 . 2 . . 1 . . . . 3 . Minesweeper 1 | . . . . . . . . . 1 . . . . . . . . Mechanic 5 | . . . . . . . 1 3 . . . . . . . 1 . Operator 2 | . 1 . . . . 1 . . . . . . . . . . . Drone 2 | . . . . . . . . . . . . . . . 2 . . Watcher 8 | . 2 . . . 2 2 . . . . . . . . . 2 . Swarmer 50 | . . 2 . . . . 18 . . 14 . 1 5 . 5 5 . Saboteur 3 | . . . . . . . 3 . . . . . . . . . . Grunt 62 | . 7 . . . 6 7 16 6 2 . 3 . 4 . 3 8 . Brawler 6 | . . . . . . . . 1 . . . . 4 . 1 . . Duelist 1 | . . . . . . . 1 . . . . . . . . . . Sentry 18 | . . . . . 2 6 5 1 . 1 . . 1 . . 2 . Demolisher 1 | . . . . . . . . 1 . . . . . . . . . Specialist 6 | . . . . . 2 . 2 . 2 . . . . . . . . Hunter 12 | . . . . . 1 1 4 . 2 . . . . . 2 2 . Programmer 10 | . . . . . . . . . 1 . 2 . . . . 7 . Behemoth 1 | . . . . . . . . . . . . . . . 1 . . Samaritan 4 | . . . . . . . . . 3 . . . . . . . 1 Assembled 12 | . . 12 . . . . . . . . . . . . . . . Wasp 3 | . . . . . . . . . . 3 . . . . . . . Thug 3 | . . . . . . . . . . 1 . . . . . . 2 Mutant 1 | . . . . . . . . . . . . . . . . . 1 Best Kill Streak 9 | 2 2 9 . 1 4 6 6 9 4 4 3 1 6 . 5 9 . Combat Bots Only 9 | . 2 9 . . 3 3 6 4 3 4 3 1 6 . 5 9 . Max Kills in Single Turn 4 | 1 1 2 . 1 2 3 4 4 1 3 2 1 3 . 2 2 1 Gunslinging 1 | . . . . . . . 1 . . . . . . . . . . Exploded 4 | . . 2 . . . . 4 2 . 3 . 1 3 . 2 2 . Melee 1 | . . . . . . . 1 . . . . . . . . . . Uniques/NPCs Destroyed . | . . . . . . . . . . . . . . . . . . Combat | -11 -10 -10 -10 -9 -8 -8 -8 -7 -7 -7 -6 -6 -6 -6 -5 -5 -5 -------- Run | Yrd Mat Min Exi Min Mat Sto Gar Fac Low Low Fac Low Low Dat Pro Fac Upp Hostile Shots Fired 993 | . 26 27 . . 60 43 124 104 84 53 23 23 42 . 66 281 37 Missed 304 | . 7 11 . . 23 15 28 41 24 14 6 7 15 . 20 86 7 Hits 689 | . 19 16 . . 37 28 96 63 60 39 17 16 27 . 46 195 30 Melee 12 | . . 7 . . . . 1 . . . . . 4 . . . . Projectile 677 | . 19 9 . . 37 28 95 63 60 39 17 16 23 . 46 195 30 AOE 12 | . . . . . . . . 8 . . . . . . . 4 . Critical Strikes 24 | . . 2 . . . . 4 1 . 2 1 . 3 . 1 9 1 Part Disruptions 3 | . . . . . . . . . 1 . . . . . . 2 . Damage Taken 12093 | . 236 410 . 8 484 457 1552 760 839 617 246 324 693 . 861 4120 486 Core 1741 | . 45 33 . . 34 51 163 46 53 161 . . 103 . 48 739 265 Absorbed by Shields 98 | . . . . . 60 . 14 . . . . . . . . 24 . Regen/Repaired (Parts) 256 | . 34 . . . 202 . . . . 20 . . . . . . . Core Remaining (%) 73 | 100 . . . 68 . . 54 . . 62 . . . . 82 . . Volleys Fired 717 | 16 52 36 . 6 70 76 143 18 41 20 31 16 34 2 44 112 . Largest 4 | 2 2 2 . 1 3 3 3 3 3 3 4 2 4 1 4 4 . Hottest 620 | 40 121 100 . 20 124 136 128 131 193 118 191 171 200 7 215 620 . Shots Fired 1459 | 32 87 46 . 6 157 126 322 36 114 37 68 22 94 2 72 238 . Gun 923 | 32 55 24 . 6 126 80 278 31 112 25 34 . 44 . 10 66 . Cannon 412 | . 15 11 . . 19 46 15 . . . 31 15 42 . 46 172 . Launcher 82 | . . 8 . . . . 27 5 2 12 . 6 8 . 14 . . Special 42 | . 17 3 . . 12 . 2 . . . 3 1 . 2 2 . . Kinetic 792 | 32 50 28 . 6 95 55 224 16 64 15 31 1 60 . 23 92 . Thermal 509 | . 37 10 . . 59 71 65 15 26 . 26 9 20 . 29 142 . Explosive 68 | . . 8 . . . . 27 3 . 2 . 6 8 . 14 . . Electromagnetic 82 | . . . . . 3 . 6 2 24 20 8 5 6 . 4 4 . Robot Hit Streak 42 | 8 6 5 . 7 14 26 42 8 21 8 8 7 8 1 12 10 . Robot Miss Streak 8 | 4 4 3 . . 4 2 4 5 3 2 8 1 4 1 5 6 . Penetration Max 2 | . . 2 . . 1 . . . . . . . 1 . . 1 . Secondary Targets 15 | . . . . . 2 1 10 . . 1 1 . . . . . . Max Gunslinging Chain 2 | . . . . . 1 1 2 . . 1 1 . . . . . . Shots Hit Robots 876 | 21 45 22 . 6 98 86 207 22 83 20 36 11 59 1 36 117 6 Core Hits 545 | 7 20 21 . 2 50 50 121 31 34 27 29 7 34 . 28 80 4 Critical Kills 11 | . . 3 . . 2 . . . . . 1 . 1 . 1 3 . Critical Parts Destroyed 19 | . . 3 . . 3 . 1 1 . . . . 8 . 1 2 . Critical Strikes 53 | . 5 8 . . 11 . 1 1 . . 1 . 14 . 4 8 . Burn 11 | . 3 2 . . 6 . . . . . . . . . . . . Meltdown 2 | . . . . . . . . . . . . . . . 1 1 . Destroy 31 | . . 6 . . 5 . 1 1 . . 1 . 12 . 1 4 . Blast 8 | . 2 . . . . . . . . . . . 1 . 2 3 . Corrupt 1 | . . . . . . . . . . . . . 1 . . . . Melee Attacks 12 | . . . . . . . 2 . . . . . . . . 1 9 Thermal 2 | . . . . . . . 2 . . . . . . . . . . Impact . | . . . . . . . . . . . . . . . . . . Slashing . | . . . . . . . . . . . . . . . . . . Piercing 10 | . . . . . . . . . . . . . . . . 1 9 Sneak Attacks 7 | . . . . . . . 1 . . . . . . . . . 6 Combat Hostiles 1 | . . . . . . . 1 . . . . . . . . . . Follow-up Attacks . | . . . . . . . . . . . . . . . . . . Damage Inflicted 23647 | 155 607 836 . 99 2022 2434 3861 1882 1538 1137 845 558 1759 . 1811 3680 423 Guns 10675 | 155 383 204 . 82 1417 1385 3370 439 1511 253 498 . 210 . 26 742 . Cannons 7081 | . 222 244 . . 477 1021 84 . . . 342 285 903 . 879 2624 . Explosions 5216 | . . 388 . . 44 . 407 1443 27 884 . 273 646 . 906 198 . Melee 423 | . . . . . . . . . . . . . . . . . 423 Ramming 252 | . 2 . . 17 84 28 . . . . 5 . . . . 116 . Kinetic 8993 | 155 432 376 . 82 1021 718 1888 168 864 155 476 . 572 . 316 1770 . Thermal 7992 | . 173 72 . . 886 1688 1461 271 444 112 274 176 415 . 523 1497 . Explosive 4488 | . . 388 . . . . 407 1269 . 401 . 273 646 . 906 198 . Electromagnetic 1499 | . . . . . 31 . 105 174 230 469 90 109 126 . 66 99 . Impact . | . . . . . . . . . . . . . . . . . . Slashing . | . . . . . . . . . . . . . . . . . . Piercing 423 | . . . . . . . . . . . . . . . . . 423 Highest Corruption 16 | . . . . . 2 3 4 . 4 4 . 4 5 5 7 16 16 Average Corruption 4 | . . . . . 2 2 3 . 3 4 . 2 5 5 5 10 16 Corruption Purged 4 | . . . . . . . . . . . . 4 . . . . . Corruption Blocked . | . . . . . . . . . . . . . . . . . . Effects 314 | . . . . . 8 33 66 . 9 37 . 3 9 5 65 66 13 Message Errors 77 | . . . . . 5 6 17 . 2 9 . . 5 . 17 15 1 Matter Fused 78 | . . . . . . 10 16 . 2 12 . 1 3 4 9 15 6 Heat Flow Errors 29 | . . . . . . 2 8 . 2 1 . . 1 . 9 5 1 Energy Discharges 48 | . . . . . 1 8 6 . 2 7 . 2 . 1 15 4 2 Parts Rejected 1 | . . . . . 1 . . . . . . . . . . . . Parts Fused 4 | . . . . . . 1 . . . . . . . . 2 1 . Data Loss (minor) 36 | . . . . . . 1 10 . 1 7 . . . . 5 10 2 Data Loss (major) 7 | . . . . . . . 3 . . . . . . . 2 1 1 Misfires 16 | . . . . . 1 1 4 . . 1 . . . . 4 5 . Alerts 7 | . . . . . . 2 1 . . . . . . . 2 2 . Weapon Failures 11 | . . . . . . 2 1 . . . . . . . . 8 . Overload Shots 3 | . . . . . . . . . . . . . . . . 3 . Effects 1 | . . . . . . . . . . . . . . . . 1 . Heat Surge 1 | . . . . . . . . . . . . . . . . 1 . Overflow Damage 432 | . . 32 . . 42 32 . 79 . 12 13 . 41 . 43 105 33 Projectiles 162 | . . . . . 42 32 . . . . 13 . 9 . 10 56 . Explosions 215 | . . 32 . . . . . 79 . 12 . . 32 . 33 27 . Melee 55 | . . . . . . . . . . . . . . . . 22 33 Knockbacks 29 | . 3 2 . . 3 . . . . . 1 . . . 2 18 . Impact 4 | . 1 . . . 2 . . . . . . . . . . 1 . Kinetic 25 | . 2 2 . . 1 . . . . . 1 . . . 2 17 . Secondary . | . . . . . . . . . . . . . . . . . . Self-Inflicted Damage 763 | . . 106 . 8 35 . 227 . . 98 . . 139 . 51 99 . Shots 22 | . . 3 . . 1 . 7 . . 5 . . 3 . 2 1 . Rammed 21 | . 1 . . 1 10 3 . . . . 2 . . . . 4 . Targets Rammed 23 | . 1 . . 1 11 3 . . . . 2 . . . . 5 . Kicked . | . . . . . . . . . . . . . . . . . . Crushed 2 | . . . . . 1 . . . . . . . . . . 1 . Highest Temperature 632 | . 135 36 . . 269 275 279 243 115 222 258 207 196 . 250 632 121 Average Temperature 67 | . 40 13 . . 61 71 61 72 22 79 75 112 55 . 81 91 62 Received Heat Transfer 2225 | . 135 40 . . 96 198 450 180 117 99 120 21 153 . 75 541 . Effects 9 | . . . . . . . 1 . . . 1 . . . 1 6 . Shutdowns 1 | . . . . . . . . . . . . . . . . 1 . Energy Bleed 1 | . . . . . . . . . . . . . . . 1 . . Interference 5 | . . . . . . . 1 . . . 1 . . . . 3 . Matter Decay 2 | . . . . . . . . . . . . . . . . 2 . Siege Activations . | . . . . . . . . . . . . . . . . . . Martial Activations . | . . . . . . . . . . . . . . . . . . Shielding Activations . | . . . . . . . . . . . . . . . . . . Robots Disrupted . | . . . . . . . . . . . . . . . . . . Combat Hostiles . | . . . . . . . . . . . . . . . . . . Robots Corrupted 1 | . . . . . . . . . . . . . . . . 1 . Combat Hostiles . | . . . . . . . . . . . . . . . . . . Parts Fried 7 | . . . . . . . . . 1 2 . . . . . 4 . Impact Corruptions 2 | . . . . . . . . . . . . . . . . 2 . Robots Melted 2 | . . . . . . . . . . . . . . . 1 1 . Combat Hostiles 2 | . . . . . . . . . . . . . . . 1 1 . Parts Melted 23 | . . . . . 2 7 3 . 1 . . . 1 . 3 6 . Heat Transferred 16529 | . 666 333 . . 2330 3744 3160 600 948 150 400 250 650 . 800 2498 . Parts Sabotaged 2 | . . . . . . . 2 . . . . . . . . . . Parts Stolen . | . . . . . . . . . . . . . . . . . . Parts Stripped . | . . . . . . . . . . . . . . . . . . Power Chain Reactions 5 | . . . . . 1 . . . . 4 . . . . . . . Alert | -11 -10 -10 -10 -9 -8 -8 -8 -7 -7 -7 -6 -6 -6 -6 -5 -5 -5 ------- Run | Yrd Mat Min Exi Min Mat Sto Gar Fac Low Low Fac Low Low Dat Pro Fac Upp Maximum Alert Level 5 | . . . . . . . 5 4 . . . . . . . 2 . Low Security (%) 78 | 100 100 100 . 100 100 100 13 . . . 100 . . . . 94 . Level 1 1 | . . . . . . . 7 . . . . . . . . 3 . Level 2 2 | . . . . . . . 12 . . . . . . . . 2 . Level 3 4 | . . . . . . . 21 5 . . . . . . . . . Level 4 8 | . . . . . . . 14 94 . . . . . . . . . Level 5 5 | . . . . . . . 30 . . . . . . . . . . High Security . | . . . . . . . . . . . . . . . . . . Max Security . | . . . . . . . . . . . . . . . . . . Peak Influence 2698 | 10 70 47 . 5 111 110 2698 1416 . . 119 . . . . 446 . Initial 1416 | . . . . . . 45 5 1416 . . 119 . . . . . . Average 292 | 1 13 1 . . 18 38 1149 1248 . . 19 . . . . 93 . Influence Increases 7115 | 20 274 93 . 5 484 521 2733 406 200 370 215 116 318 . 305 1010 45 Destroy 0b10 Robot/C 3520 | . 140 40 . . 260 280 980 220 140 300 80 80 280 . 240 480 . Destroy 0b10 Robot/NC 340 | 20 35 5 . 5 65 70 20 35 5 . 15 . 5 . 10 50 . Destroy Leader 554 | . 46 . . . 58 100 40 40 10 40 32 20 20 . 40 108 . Allied During Kill 43 | . . . . . 2 . . 5 . . 7 16 13 . . . . Successful Hack 118 | . 36 . . . 17 9 . 20 . . 36 . . . . . . Disable Machine 270 | . . . . . 15 30 . 45 . . 15 . . . . 165 . Anti-Garrison Action 1500 | . . . . . . . 1500 . . . . . . . . . . Destroy Structure 485 | . 17 48 . . 22 17 178 26 . . 15 . . . . 162 . Partial Spotted 15 | . . . . . . . . . . . 15 . . . . . . Lose Combat Pursuer 270 | . . . . . 45 15 15 15 45 30 . . . . 15 45 45 Influence Decreases 6922 | 20 274 76 17 5 376 621 43 1824 1026 635 404 116 193 125 305 568 294 Entered New Map 2285 | . . . 17 . . 63 3 1282 474 87 70 . . 125 . . 164 Time Decay 4144 | 20 274 75 . 5 334 558 . 482 482 538 334 116 143 . 295 358 130 Lost Part 371 | . . 1 . . . . 40 20 70 10 . . 10 . 10 210 . Lost Ally 122 | . . . . . 42 . . 40 . . . . 40 . . . . Squads Dispatched 23 | . 2 . . . 2 2 . 5 . . 6 . 1 . . 5 . Investigation 2 | . 1 . . . . . . . . . 1 . . . . . . Extermination 9 | . . . . . . . . 2 . . 3 . . . . 4 . Reinforcement 6 | . 1 . . . 2 . . . . . 2 . . . . 1 . Assault 4 | . . . . . . . . 3 . . . . 1 . . . . Garrison 2 | . . . . . . 2 . . . . . . . . . . . Intercept . | . . . . . . . . . . . . . . . . . . Searches Triggered . | . . . . . . . . . . . . . . . . . . Construction Impeded 1 | . . . . . . . . . . . . . . . . 1 . Haulers Reinforced 1 | . . . . . . . . . . . 1 . . . . . . Active Scanning Responses . | . . . . . . . . . . . . . . . . . . Cargo Convoy Interrupts . | . . . . . . . . . . . . . . . . . . Stealth | -11 -10 -10 -10 -9 -8 -8 -8 -7 -7 -7 -6 -6 -6 -6 -5 -5 -5 --------- Run | Yrd Mat Min Exi Min Mat Sto Gar Fac Low Low Fac Low Low Dat Pro Fac Upp Distress Signals 8 | . 2 . . . 2 1 . 1 . . . . . . 1 1 . Communications Jammed . | . . . . . . . . . . . . . . . . . . Distress Signals . | . . . . . . . . . . . . . . . . . . Times Spotted 241 | . 12 17 . . 18 16 46 19 11 18 8 5 14 . 10 42 5 Peak Tracking Total 10 | . 3 6 . . 3 3 6 6 3 4 2 3 7 . 4 10 3 Tactical Retreats 15 | . . 1 . . 2 1 1 1 3 2 . . . . 1 2 1 Traps | -11 -10 -10 -10 -9 -8 -8 -8 -7 -7 -7 -6 -6 -6 -6 -5 -5 -5 ------- Run | Yrd Mat Min Exi Min Mat Sto Gar Fac Low Low Fac Low Low Dat Pro Fac Upp Traps Triggered 15 | . 1 . . . 1 2 7 2 . . . . . . . 2 . Indirectly . | . . . . . . . . . . . . . . . . . . Trap Hack Attempts . | . . . . . . . . . . . . . . . . . . Triggered . | . . . . . . . . . . . . . . . . . . Disarmed . | . . . . . . . . . . . . . . . . . . Reprogrammed . | . . . . . . . . . . . . . . . . . . Reused . | . . . . . . . . . . . . . . . . . . Traps Extracted . | . . . . . . . . . . . . . . . . . . Installed . | . . . . . . . . . . . . . . . . . . Triggered . | . . . . . . . . . . . . . . . . . . Most Traps Carried 2 | . . . . 2 . . . . 1 1 . . . . . . . Machines | -11 -10 -10 -10 -9 -8 -8 -8 -7 -7 -7 -6 -6 -6 -6 -5 -5 -5 ---------- Run | Yrd Mat Min Exi Min Mat Sto Gar Fac Low Low Fac Low Low Dat Pro Fac Upp Machines Disabled 27 | . . . . . 1 2 7 3 1 . 1 . 1 . . 11 . Max in Single Turn 2 | . . . . . 1 1 1 2 1 . 1 . 1 . . 2 . Garrison Relay 5 | . . . . . . . 5 . . . . . . . . . . Machines Repaired . | . . . . . . . . . . . . . . . . . . Machines Dismantled 5 | . . . . . . 1 4 . . . . . . . . . . Machines Sabotaged . | . . . . . . . . . . . . . . . . . . Overloaded Fab Kills . | . . . . . . . . . . . . . . . . . . Hacking | -11 -10 -10 -10 -9 -8 -8 -8 -7 -7 -7 -6 -6 -6 -6 -5 -5 -5 --------- Run | Yrd Mat Min Exi Min Mat Sto Gar Fac Low Low Fac Low Low Dat Pro Fac Upp Machines Accessed 45 | . 8 . 2 1 6 8 2 4 . . 6 1 . 4 . 2 1 Terminals 26 | . 6 . . . 4 7 2 2 . . 3 . . . . 1 1 Fabricators 3 | . . . . . . . . 2 . . 1 . . . . . . Repair Stations 3 | . 1 . . . 1 . . . . . 1 . . . . . . Recycling Units 2 | . 1 . . . . . . . . . . . . . . 1 . Scanalyzers 2 | . . . . . 1 . . . . . 1 . . . . . . Garrison Access 1 | . . . . . . 1 . . . . . . . . . . . Total Hacks 122 | . 27 . 3 1 21 14 5 7 . . 9 1 . 30 . 3 1 Successful 83 | . 15 . 3 1 14 8 . 4 . . 5 1 . 30 . 1 1 Failed 38 | . 12 . . . 6 6 5 3 . . 4 . . . . 2 . Catastrophic 3 | . 1 . . . . . . 1 . . 1 . . . . . . Database Lockouts 1 | . . . . . 1 . . . . . . . . . . . . Manual 30 | . 14 . 1 . 10 2 . 1 1 . 1 . . . . . . Terminals 66 | . 23 . . . 13 13 5 5 . . 5 . . . . 1 1 Fabricators 3 | . . . . . . . . 2 . . 1 . . . . . . Repair Stations 11 | . 3 . . . 7 . . . . . 1 . . . . . . Recycling Units 3 | . 1 . . . . . . . . . . . . . . 2 . Scanalyzers 3 | . . . . . 1 . . . . . 2 . . . . . . Garrison Access 1 | . . . . . . 1 . . . . . . . . . . . Terminal Hacks 56 | . 5 . 3 1 3 7 . 2 . . 2 1 . 30 . 1 1 Record 17 | . . . 2 . . 2 . . . . 1 . . 11 . . 1 Part Schematic 12 | . . . . . . . . . . . . . . 12 . . . Robot Schematic 4 | . . . . . . . . . . . . . . 4 . . . Robot Analysis 2 | . 1 . . . 1 . . . . . . . . . . . . Prototype ID Bank 5 | . . . . . . 2 . . . . . . . 3 . . . Open Door 5 | . . . . 1 . 3 . . . . . 1 . . . . . Open DSF 1 | . . . . . . . . . . . . . . . . 1 . Branch Access Points 2 | . . . . . 1 . . 1 . . . . . . . . . Terminal Index 1 | . . . . . . . . . . . 1 . . . . . . Repair Station Index 1 | . . . . . . . . 1 . . . . . . . . . Locate Traps 4 | . 3 . . . 1 . . . . . . . . . . . . Zone Layout 1 | . 1 . . . . . . . . . . . . . . . . Proto ID Catalog 1 | . . . 1 . . . . . . . . . . . . . . Fabricator Hacks 3 | . . . . . . . . 2 . . 1 . . . . . . Network Status 2 | . . . . . . . . 1 . . 1 . . . . . . Build 1 | . . . . . . . . 1 . . . . . . . . . Repair Station Hacks 8 | . 2 . . . 6 . . . . . . . . . . . . Scan Component 4 | . 1 . . . 3 . . . . . . . . . . . . Repair 4 | . 1 . . . 3 . . . . . . . . . . . . Recycling Unit Hacks 1 | . 1 . . . . . . . . . . . . . . . . Retrieve Components 1 | . 1 . . . . . . . . . . . . . . . . Scanalyzer 1 | . . . . . . . . . . . 1 . . . . . . Insert Component 1 | . . . . . . . . . . . 1 . . . . . . Garrison Access Hacks 1 | . . . . . . 1 . . . . . . . . . . . Unlock Access 1 | . . . . . . 1 . . . . . . . . . . . Unauthorized Hacks 13 | . 7 . . . 5 . . . . . 1 . . . . . . Terminals 13 | . 7 . . . 5 . . . . . 1 . . . . . . Botnet 3 | . 1 . . . 1 . . . . . 1 . . . . . . Operators 1 | . 1 . . . . . . . . . . . . . . . . Skim 9 | . 5 . . . 4 . . . . . . . . . . . . Fabricators . | . . . . . . . . . . . . . . . . . . Repair Stations . | . . . . . . . . . . . . . . . . . . Recycling Units . | . . . . . . . . . . . . . . . . . . Scanalyzers . | . . . . . . . . . . . . . . . . . . Garrison Access . | . . . . . . . . . . . . . . . . . . Data Cores Recovered 2 | . . . . . . 1 . 1 . . . . . . . . . Used . | . . . . . . . . . . . . . . . . . . Hacking Detections 28 | . 4 . . . 5 7 2 3 . . 5 . . . . 1 1 Full Trace Events 1 | . . . . . . . 1 . . . . . . . . . . Feedback Events 1 | . . . . . . . 1 . . . . . . . . . . Corruption 1 | . . . . . . . 1 . . . . . . . . . . Feedback Blocked . | . . . . . . . . . . . . . . . . . . Robot Schematics Acquired 4 | . . . . . . . . . . . . . . 4 . . . Robots Built . | . . . . . . . . . . . . . . . . . . Authchips . | . . . . . . . . . . . . . . . . . . Time . | . . . . . . . . . . . . . . . . . . Total Robot Build Rating . | . . . . . . . . . . . . . . . . . . Part Schematics Acquired 12 | . . . . . . . . . . . . . . 12 . . . Parts Built . | . . . . . . . . . . . . . . . . . . Authchips . | . . . . . . . . . . . . . . . . . . Time 58 | . . . . . . . . 58 . . . . . . . . . Total Part Build Rating . | . . . . . . . . . . . . . . . . . . Part Studies Acquired . | . . . . . . . . . . . . . . . . . . Parts Repaired 4 | . 1 . . . 3 . . . . . . . . . . . . Time 128 | . 26 . . . 102 . . . . . . . . . . . . Parts Recycled . | . . . . . . . . . . . . . . . . . . Recycled Matter . | . . . . . . . . . . . . . . . . . . Retrieved Matter . | . . . . . . . . . . . . . . . . . . Retrieved Components 10 | . 10 . . . . . . . . . . . . . . . . Parts Scanalyzed . | . . . . . . . . . . . . . . . . . . Part Schematics Acquired . | . . . . . . . . . . . . . . . . . . Parts Damaged . | . . . . . . . . . . . . . . . . . . Bothacking | -11 -10 -10 -10 -9 -8 -8 -8 -7 -7 -7 -6 -6 -6 -6 -5 -5 -5 ------------ Run | Yrd Mat Min Exi Min Mat Sto Gar Fac Low Low Fac Low Low Dat Pro Fac Upp Used RIF Installer 1 | . . . . . . . 1 . . . . . . . . . . Robots Hacked 6 | . . . . . . . . . . . 3 1 . 1 1 . . Non-combat . | . . . . . . . . . . . . . . . . . . Combat 6 | . . . . . . . . . . . 3 1 . 1 1 . . Robot Hacks Applied 6 | . . . . . . . . . . . 3 1 . 1 1 . . parse_system 1 | . . . . . . . . . . . . . . 1 . . . reboot_system 2 | . . . . . . . . . . . . 1 . . 1 . . formatsys_high 3 | . . . . . . . . . . . 3 . . . . . . Relay Couplers Released 23 | . . . . . . . 23 . . . . . . . . . . Machine Destruction 23 | . . . . . . . 23 . . . . . . . . . . Attached 4 | . . . . . . . . . . . 2 1 . . 1 . . Fabnet Peak Effective % . | . . . . . . . . . . . . . . . . . . Robots Rewired 5 | . . . . . . . 3 . . . . . 2 . . . . Allies Hacked 1 | . . . . . . . . 1 . . . . . . . . . Hacks Repelled . | . . . . . . . . . . . . . . . . . . Allies | -11 -10 -10 -10 -9 -8 -8 -8 -7 -7 -7 -6 -6 -6 -6 -5 -5 -5 -------- Run | Yrd Mat Min Exi Min Mat Sto Gar Fac Low Low Fac Low Low Dat Pro Fac Upp Total Allies 12 | . . 1 . 3 . . 3 . . . 3 . 2 . . . . Largest Group 3 | . . 1 . 3 3 . 3 3 . . 2 2 2 . . . . Highest-Rated Group 61 | . . 31 . 40 40 . 45 45 . . 61 61 61 . . . . Highest-Rated Ally 32 | . . 31 . 16 16 . 15 15 . . 32 32 32 . . . . Total Orders 31 | . . . . . 4 5 10 3 . . 4 . 3 . . 2 . STAY 3 | . . . . . . . . . . . 2 . 1 . . . . FOLLOW 3 | . . . . . . . . . . . 2 . 1 . . . . GUARD 1 | . . . . . . . . . . . . . 1 . . . . EXPLORE 12 | . . . . . 2 2 5 2 . . . . . . . 1 . RETURN 12 | . . . . . 2 3 5 1 . . . . . . . 1 . Ally Attacks 70 | . . 3 . . 15 . . 21 . . 5 14 12 . . . . Total Damage 1133 | . . 20 . . 186 . . 416 . . 51 288 172 . . . . Kills 10 | . . 1 . . 2 . . 3 . . . 3 1 . . . . Allies Corrupted . | . . . . . . . . . . . . . . . . . . Allies Melted . | . . . . . . . . . . . . . . . . . . Intel | -11 -10 -10 -10 -9 -8 -8 -8 -7 -7 -7 -6 -6 -6 -6 -5 -5 -5 ------- Run | Yrd Mat Min Exi Min Mat Sto Gar Fac Low Low Fac Low Low Dat Pro Fac Upp Active Infowar (turns) 26689 | 25 1597 4058 . 411 2226 1976 3520 1243 1241 1526 1644 1901 1422 195 1970 1734 . Optics 15864 | . . . . . 1619 1976 3520 1243 1241 1526 1644 1901 1194 . . . . Sensors 6084 | . . . . . . . . . . . . 1842 1146 195 1970 931 . Structural 5002 | . 57 62 . . 1690 1260 3 316 476 . . . . . . 1138 . Traps 1 | . . . . . . . . . . . . 1 . . . . . Seismic 6556 | 25 1540 3996 . 411 584 . . . . . . . . . . . . Decoding 1 | . . . . . . . . . . . . 1 . . . . . Machine Analysis 1031 | . . . . . . . . . . . 1029 2 . . . . . Robot Analysis Total 2 | . 1 . . . 1 . . . . . . . . . . . . Derelict Logs Recovered 10 | . . . . 2 . . . . 1 2 . 1 2 . 2 . . Drone Launches 30 | . . . . . 2 13 10 2 . . . . . . . 3 . Drone Recoveries 30 | . . . . . 2 13 10 2 . . . . . . . 3 . Exploration | -11 -10 -10 -10 -9 -8 -8 -8 -7 -7 -7 -6 -6 -6 -6 -5 -5 -5 ------------- Run | Yrd Mat Min Exi Min Mat Sto Gar Fac Low Low Fac Low Low Dat Pro Fac Upp Turns Passed 30176 | 137 1597 4343 602 715 2956 1976 3541 1243 1241 1526 1644 1901 1428 195 2316 2541 274 Spaces Moved 12225 | 94 826 472 416 460 904 598 1567 625 658 898 749 987 704 115 819 1024 309 Core 440 | 4 . 107 . . . . . . . . . . . . . 135 194 Treads 2161 | . 76 57 . . 570 598 399 . . . . . . . 1 460 . Legs 202 | . . . . . . . . . . 87 . . . . . . 115 Wheels 9422 | 90 750 308 416 460 334 . 1168 625 658 811 749 987 704 115 818 429 . Hover . | . . . . . . . . . . . . . . . . . . Flight . | . . . . . . . . . . . . . . . . . . Fastest Speed 50 | 50 80 140 140 140 145 240 145 145 145 145 135 160 160 160 145 50 50 Average Speed 178 | 78 121 472 143 148 227 240 170 154 145 156 158 169 172 161 166 183 76 Slowest Speed 1600 | 80 240 1600 155 155 320 320 560 160 145 260 160 175 175 175 400 320 120 Overloaded Moves . | . . . . . . . . . . . . . . . . . . Propulsion Burnouts . | . . . . . . . . . . . . . . . . . . Robots Hopped . | . . . . . . . . . . . . . . . . . . Potential Cave-ins 3 | . . . . . . . 1 . . . 2 . . . . . . Cave-ins Triggered 1 | . . . . . . . . . . . . . . . . 1 . Exploration Rate (%) 64 | 4 95 78 89 99 43 80 81 20 68 98 18 98 83 68 76 22 47 Regions Visited 17 Branch Regions 11 Pre-discovered Areas 5 | . . 1 1 1 . . . . . . . . 1 1 . . . Known Exits Taken 8 | . . . . . 1 1 . 1 . . 1 1 1 1 1 . . Unknown Exits Taken 8 | 1 1 1 1 1 . . . . 1 1 . . . . . 1 . Scrap Searched 21 | . . . . 2 . . . . 2 3 . 5 3 . 4 . 2 Spaces Dug 179 | . 14 17 . . 11 11 92 . . 7 6 2 . . 3 16 . Terrain Destroyed 787 | . 17 76 . . 21 16 254 29 1 33 17 32 68 . 130 93 . Melee 1 | . . . . . . . . . . . . . . . . 1 . Projectile 165 | . 17 9 . . 19 16 4 . 1 . 17 4 9 . 16 53 . AOE 620 | . . 67 . . 2 . 250 29 . 33 . 28 58 . 114 39 . Terrain Rammed . | . . . . . . . . . . . . . . . . . . Walls Destroyed . | . . . . . . . . . . . . . . . . . . Machines Disabled . | . . . . . . . . . . . . . . . . . . Actions | -11 -10 -10 -10 -9 -8 -8 -8 -7 -7 -7 -6 -6 -6 -6 -5 -5 -5 --------- Run | Yrd Mat Min Exi Min Mat Sto Gar Fac Low Low Fac Low Low Dat Pro Fac Upp Total 19256 | 129 1301 2531 419 491 1656 1007 2163 867 850 989 1161 1200 847 124 1705 1482 334 Wait 5184 | . 353 1988 . 6 516 220 213 196 123 41 305 122 73 . 796 232 . Move 12209 | 93 825 471 415 459 903 598 1566 624 657 897 748 986 703 114 818 1023 309 Hop . | . . . . . . . . . . . . . . . . . . Pick Up 205 | 11 26 9 1 6 33 14 14 3 6 8 16 16 5 . 7 23 7 Fast Attach 128 | 6 1 . . . 14 18 17 4 3 2 10 13 . 4 10 21 5 Attach 80 | 1 . 5 . . 7 6 9 4 10 2 6 6 1 . 5 17 1 Detach 35 | . . 1 . . 4 . 6 2 3 3 4 6 . . 1 3 2 Swap 279 | . 29 15 2 4 48 26 59 9 6 9 16 11 14 . 17 14 . Drop 258 | 2 14 6 1 9 50 36 33 5 1 7 23 24 4 4 7 31 1 Fire 717 | 16 52 36 . 6 70 76 143 18 41 20 31 16 34 2 44 112 . Melee 12 | . . . . . . . 2 . . . . . . . . 1 9 Ram 2 | . . . . 1 . . . . . . . . . . . 1 . Kick . | . . . . . . . . . . . . . . . . . . Crush 21 | . 1 . . . 11 3 . . . . 2 . . . . 4 . Escape Stasis 24 | . . . . . . 2 22 . . . . . . . . . . Rewire 81 | . . . . . . . 66 2 . . . . 13 . . . . Trap . | . . . . . . . . . . . . . . . . . . Miscellaneous 21 | . . . . . . 8 13 . . . . . . . . . . Route ------- -11/Scrapyard -10/Materials (discovered 4 exits: *Mat x3 / [*Min]) -10/Mines (discovered 4 exits: *Mat x2 / *Exi / Sub) -10/Exiles (discovered 2 exits: *Min x2) -9/Mines (discovered 2 exits: *Mat x2) -8/Materials (discovered 3 exits: *Fac / *Sto x2) -8/Storage (discovered 3 exits: *Fac / *Rec / Gar) -8/Garrison (discovered 3 exits: *Fac x3) -7/Factory (discovered 3 exits: *Fac / *Low x2) -7/Lower Caves -7/Lower Caves (discovered 2 exits: *Fac / [*Zio]) -6/Factory (discovered 2 exits: Fac / *Low) -6/Lower Caves (discovered 2 exits: *Low / *Dat) -6/Lower Caves (discovered 2 exits: *Fac / *Dat) -6/Data Miner -5/Proximity Caves -5/Factory (discovered 3 exits: *Upp x2 / Ext) -5/Upper Caves History --------- Turn | Location | Event 23 | -11/Scrapyard | Discovered new exit (range 15) 138 | -11/Scrapyard | Entered Materials 398 | -10/Materials | Discovered new exit (range 6) 403 | -10/Materials | Build established: Mutant 842 | -10/Materials | Discovered new exit (range 8) 897 | -10/Materials | Discovered new exit (range 12) 1033 | -10/Materials | Discovered new exit (range 3) 1185 | -10/Materials | Learned location of 1 exit from Storage 1229 | -10/Materials | Learned 4 Recycling zone layouts 1263 | -10/Materials | Learned location of 1 exit from Storage 1287 | -10/Materials | Loaded intel: 1 repair station location 1299 | -10/Materials | Learned location of 1 exit from Storage 1313 | -10/Materials | Learned 2 Storage zone layouts 1336 | -10/Materials | Learned 2 Mines zone layouts 1369 | -10/Materials | Learned 2 Mines zone layouts 1378 | -10/Materials | Repaired Lgt. Cannon? 1735 | -10/Materials | Entered Mines 1736 | -10/Mines | Identified exit to Materials 1736 | -10/Mines | Identified exit to Subcaves 1752 | -10/Mines | Discovered exit to Materials (range 7) 1802 | -10/Mines | Escorted by a lone wolf Derelict 1822 | -10/Mines | Learned location of Storage (-8) 1925 | -10/Mines | A weapon hastily lodged in a ceiling crevice suddenly fell to the ground 2007 | -10/Mines | Assembled infested the area 2012 | -10/Mines | Assisted by a Guerilla fighting off Assembled 2082 | -10/Mines | Destroyed 9 combat bots 2090 | -10/Mines | Lost 3 parts (1p2n) 6043 | -10/Mines | Found a Scrap Suit stashed away for nefarious purposes 6048 | -10/Mines | Found Scrap Suit 6064 | -10/Mines | Deemed a non-threat by the Exiles lab entrance 6065 | -10/Mines | Discovered new exit (range 5) 6078 | -10/Mines | Entered Exiles 6101 | -10/Exiles | Discovered new exit (range 15) 6113 | -10/Exiles | Met 8R-AWN 6136 | -10/Exiles | Met EX-HEX 6189 | -10/Exiles | Met EX-DEC 6200 | -10/Exiles | Learned location of Zion (-7) 6274 | -10/Exiles | Visited The Gauntlet 6447 | -10/Exiles | Met EX-BIN 6468 | -10/Exiles | Aligned with FarCom system 6469 | -10/Exiles | Given EX-Vault access code 6504 | -10/Exiles | Opened EX-Vault 6514 | -10/Exiles | Found Gui. Plasma Cannon 6545 | -10/Exiles | Warned to stay clear of 0b10 Research branches 6664 | -10/Exiles | Discovered new exit (range 10) 6680 | -10/Exiles | Left Exiles lab with Gui. Plasma Cannon 6680 | -10/Exiles | Entered Mines 6699 | -9/Mines | Assisted by bots powering up and referring to "LRC-V3" 6725 | -9/Mines | Discovered new exit (range 8) 6956 | -9/Mines | Learned 2 Materials zone layouts 6963 | -9/Mines | Received a Rocket Launcher from a helpful Derelict 7067 | -9/Mines | Found a hidden stash of uninstalled traps 7177 | -9/Mines | Discovered new exit (range 9) 7307 | -9/Mines | Found the Drone Emporium 7318 | -9/Mines | Found Prototype Device 7395 | -9/Mines | Entered Materials 7395 | -8/Materials | Accompanied by 3 allies 7395 | -8/Materials | Evolved 4 slots: Propulsion x1, Utility x2, Weapon x1 7396 | -8/Materials | Identified Bomb Drone Bay 7722 | -8/Materials | Build established: Skirmisher 7743 | -8/Materials | Central database locked down 8296 | -8/Materials | Build established: Tank 8938 | -8/Materials | Build established: Scavenger-Skirmisher 9228 | -8/Materials | Repaired Bore Cannon 9256 | -8/Materials | Repaired Lgt. Treads 9284 | -8/Materials | Repaired Lgt. Treads 9470 | -8/Materials | Build established: Skirmisher 9499 | -8/Materials | Identified exit to Storage 9903 | -8/Materials | Discovered new exit (range 3) 10351 | -8/Materials | Entered Storage 10352 | -8/Storage | Identified exit to Recycling 10353 | -8/Storage | Identified exit to Factory 10727 | -8/Storage | Garrison activated, responded to threat 10843 | -8/Storage | Garrison activated, responded to threat 10898 | -8/Storage | Build established: Scavenger-Skirmisher 11313 | -8/Storage | Used back door to open Recycling access 12327 | -8/Storage | Identified exit to Garrison 12327 | -8/Storage | Entered Garrison 12569 | -8/Garrison | Triggered checkpoint 12814 | -8/Garrison | Triggered checkpoint 13053 | -8/Garrison | Triggered checkpoint 13107 | -8/Garrison | Gui. Plasma Cannon suddenly broke down 13185 | -8/Garrison | Garrison Relay disabled 13215 | -8/Garrison | Garrison Relay disabled 13263 | -8/Garrison | Triggered checkpoint 13290 | -8/Garrison | Discovered exit to Factory (range 11) 13459 | -8/Garrison | Triggered checkpoint 13610 | -8/Garrison | Discovered exit to Factory (range 11) 13667 | -8/Garrison | Triggered checkpoint 13745 | -8/Garrison | Garrison Relay disabled 13856 | -8/Garrison | Build established: Skirmisher 13953 | -8/Garrison | Triggered checkpoint 14027 | -8/Garrison | Discovered exit to Factory (range 11) 14061 | -8/Garrison | Triggered checkpoint 14153 | -8/Garrison | Triggered checkpoint 14313 | -8/Garrison | Triggered checkpoint 14368 | -8/Garrison | Garrison Relay disabled 14659 | -8/Garrison | Triggered checkpoint 15396 | -8/Garrison | Build established: Scavenger-Skirmisher 15590 | -8/Garrison | Triggered checkpoint 15741 | -8/Garrison | Installed Relay Interface Framework 15868 | -8/Garrison | Entered Factory 15868 | -7/Factory | Accompanied by 3 allies 15868 | -7/Factory | Evolved 2 slots: Propulsion x1, Utility x1 16237 | -7/Factory | Identified exit to Lower Caves 16249 | -7/Factory | Build established: Bothacker-Mutant 16268 | -7/Factory | First assault squad dispatched 16381 | -7/Factory | Discovered new exit (range 8) 16424 | -7/Factory | P-60 Hacker assimilated allied Defender 3c 16551 | -7/Factory | Build established: Bothacker-Skirmisher 17111 | -7/Factory | Entered Lower Caves 17253 | -7/Lower Caves | Acquired the password to a Derelict Tinkerer's latest research 17264 | -7/Lower Caves | Found Prototype Special Weapon 17266 | -7/Lower Caves | Identified Molecular Deconstructor 17459 | -7/Lower Caves | Caught by Unaware searching for contraband prototypes 17497 | -7/Lower Caves | Lost 3 parts (1n2w) 17544 | -7/Lower Caves | Caught by Unaware searching for contraband prototypes 17874 | -7/Lower Caves | Build established: Bothacker-Gunner 17877 | -7/Lower Caves | Encountered a Warlord checkpoint 17889 | -7/Lower Caves | Learned location of 2 exits from Factory 18242 | -7/Lower Caves | Spotted B-75 Beast 18245 | -7/Lower Caves | Build established: Scavenger-Gunner 18328 | -7/Lower Caves | Discovered new exit (range 8) 18352 | -7/Lower Caves | Entered another Lower Caves area 18364 | -7/Lower Caves | Discovered new exit (range 9) 18676 | -7/Lower Caves | Learned 8 Factory zone layouts 18702 | -7/Lower Caves | Encountered a Warlord checkpoint 18822 | -7/Lower Caves | Build established: Bothacker-Gunner 19056 | -7/Lower Caves | Attracted the attention of an 0b10 checkpoint 19374 | -7/Lower Caves | Discovered new exit (range 5) 19514 | -7/Lower Caves | Build established: Bothacker-Skirmisher 19670 | -7/Lower Caves | Ambushed by wild Derelicts 19878 | -7/Lower Caves | Entered Factory 19878 | -6/Factory | Evolved 2 slots: Utility x1, Weapon x1 19879 | -6/Factory | Identified exit to Factory 19879 | -6/Factory | Identified exit to Lower Caves 21522 | -6/Factory | Entered Lower Caves 21522 | -6/Lower Caves | Accompanied by 2 allies 21802 | -6/Lower Caves | A Derelict revealed a hidden shortcut to meet someone special 21807 | -6/Lower Caves | Identified exit to Data Miner 21816 | -6/Lower Caves | Build established: Skirmisher 22086 | -6/Lower Caves | Learned Factory non-interactive machine intel 22122 | -6/Lower Caves | Spotted B-75 Beast 22151 | -6/Lower Caves | Allies destroyed B-75 Beast 22493 | -6/Lower Caves | Discovered new exit (range 13) 23412 | -6/Lower Caves | Identified exit to Lower Caves 23423 | -6/Lower Caves | Entered another Lower Caves area 23423 | -6/Lower Caves | Accompanied by 2 allies 23520 | -6/Lower Caves | Discovered exit to Factory (range 15) 24205 | -6/Lower Caves | Discovered exit to Data Miner (range 12) 24238 | -6/Lower Caves | Learned Factory security intel 24299 | -6/Lower Caves | Attracted the attention of an 0b10 outpost 24851 | -6/Lower Caves | Entered Data Miner 24851 | -6/Data Miner | Discovered new exit (range 6) 24865 | -6/Data Miner | Identified exit to Proximity Caves 24896 | -6/Data Miner | Met Data Miner 24923 | -6/Data Miner | Learned location of Section 7 (-2) 24923 | -6/Data Miner | Acquired the access code to Warlord's prototype stash 24953 | -6/Data Miner | Received God Mode back door access code from Data Miner 25046 | -6/Data Miner | Entered Proximity Caves 25104 | -5/Proximity Caves | Learned Factory interactive machine intel 26087 | -5/Proximity Caves | Lost 3 parts (1n1u1w) 26160 | -5/Proximity Caves | Discovered exit to Factory (range 10) 26362 | -5/Proximity Caves | Build established: Scavenger-Skirmisher 26365 | -5/Proximity Caves | Spotted B-75 Beast 26391 | -5/Proximity Caves | Destroyed B-75 Beast 26479 | -5/Proximity Caves | Learned Factory emergency access door positions 26950 | -5/Proximity Caves | Build established: Skirmisher 27362 | -5/Proximity Caves | Entered Factory 27362 | -5/Factory | Evolved 2 slots: Utility x2 27363 | -5/Factory | Identified exit to Extension 27366 | -5/Factory | Loaded intel: 242 non-interactive machine locations 27367 | -5/Factory | Loaded intel: 54 interactive machine locations 27447 | -5/Factory | Identified exit to DSF 28243 | -5/Factory | Lost 6 parts (1n2u3w) 28600 | -5/Factory | System corruption reached 10% 28707 | -5/Factory | Discovered new exit (range 31) 29143 | -5/Factory | Build established: Scavenger-Tank 29801 | -5/Factory | Crushed by falling debris 29811 | -5/Factory | Core integrity fell below 50% 29823 | -5/Factory | Released all parts (4) 29834 | -5/Factory | Destroyed 9 combat bots 29850 | -5/Factory | Lost 14 parts (1p4n5u4w) 29900 | -5/Factory | Discovered new exit (range 5) 29903 | -5/Factory | Entered Upper Caves 29905 | -5/Upper Caves | Encountered a Warlord checkpoint 29988 | -5/Upper Caves | Murdered 3 allies 30060 | -5/Upper Caves | Attracted the attention of an 0b10 checkpoint 30076 | -5/Upper Caves | Core integrity fell below 20% 30079 | -5/Upper Caves | Released all parts (4) 30085 | -5/Upper Caves | Build established: Mutant 30177 | -5/Upper Caves | Destroyed by H-66 Slayer with Gauss Rifle Last Messages --------------- 30083_ Penetrated by Slug. 30090_ Slug penetrates Wall. 30099_ System corrupted: Energy discharge (-25). 30113_ Connecting with Outpost Terminal... 30113_ Current location identified: Upper Caves >>Query(Status Report THIS) Pwned by WARLORD E1337. 30116_ Dropped Heat Sink. 30116_ Acquired Adv. Heat Sink. 30118_ Searching scrap... 30118_ Found Adv. Weight Redist. System. 30118_ Found Unknown Device. 30118_ Found 52 Matter. 30119_ System corrupted: Matter fused (-10). 30119_ Acquired 52 matter. 30120_ Acquired Adv. Weight Redist. System. 30136_ System corrupted: Component data lost. 30163_ System corrupted: Matter fused (-9). 30177_ Penetrated by Slug. [Achievement: Just Browsing] Map ----- +----------------------------------------------------+ | ?????????????????????????????????????????????????? | | ?????????????????????????????????????????????????? | | ?????????????????????????????????????????????????? | | ?????????????????????????????????????????????????? | | ?????????????????????????????????????????????????? | | ?????????????????????????????????????????????????? | | ?????????????????????????????????????????????????? | | ?????????????????????????????????????????????????? | | ?????????????????????????????????????????????????? | | ?????????????????????????????????????????????????? | | ?????????????????????????????????????????????????? | | ?????????????????????????????????????????????????? | | ?????????????????????????????????????????????????? | | ?????????????????????????????????????????????????? | | ???###???????####???????####?????????????????????? | | #### ####???## ##???### #?????????????????????? | | "##" ##### ##### #???????????????####### | | "" ## #???####?????????# | | ##### ###?####### ##### | | " " ## ### ### #???? | | "##" #### ## ## hh #???? | | ## ##??######## ### #######???? | | ?## #??????????# #?# n #####?????????? | | ??##### #??????????# ### #?????????????? | | ??????######??????????# # #?????????????? | | ??????????????????????# @ ## #????????????? | | ??????????????????????###### ## #????????????# | | ???????????????????????????# ### #????????????#? | | ??????????????????????????# #?# #?????????????? | | ??????????????????????????## ? ?????????????? | | ???????????????????????????## ### ?????????????? | | ????????????????????????????###?# ????????????? | | ???????????????????????????????? ????????????? | | ???????????????????????????????? ???????????? | | ???????????????????????????????? ????????????? | | ???????????????????????????????? ###?????????????? | | ?????????????????????????????????????????????????? | | ?????????????????????????????????????????????????? | | ?????????????????????????????????????????????????? | | ?????????????????????????????????????????????????? | | ?????????????????????????????????????????????????? | | ?????????????????????????????????????????????????? | | ?????????????????????????????????????????????????? | | ?????????????????????????????????????????##??????? | | ?????????????????????????????????????????# #?##### | | ???????????????????????????????? ?????## ## | | ??????????????????????????????? ## | | ???????????????????????????????? | | ???????????????????????????????????????# | | ???????????????????????????????????????## ### | +----------------------------------------------------+ Best States ------------- Heat Dissipation 91 Energy Generation 18 Energy Capacity 310 Matter Stores 300 Matter Capacity 300 Sight Range 22 Robot Scan Range 15 Terrain Scan Density 10 Armor Coverage 825 Resistance: TH 15 Weapon Cycling 15 Evasion (%) 70 Core Analysis 6 Recoil Reduction 4 Matter Filtering 30 Offensive Hacking 20 Relay Coupler Types 1 Relay Coupler Value 32 Item Schematics ----------------- Combat Drone Bay | -6/Data Miner | Free Lgt. Regenerative Plating | -6/Data Miner | Free Cld. Gravmag System | -6/Data Miner | Free Prc. Matter Filter | -6/Data Miner | Free Hvy. Gatling Laser | -6/Data Miner | Free Impulse Thruster | -6/Data Miner | Free Imp. Force Field | -6/Data Miner | Free Hvy. Disruptor Cannon | -6/Data Miner | Free Lrn. Sensor Array | -6/Data Miner | Free Imp. Armor Integrity Analyzer | -6/Data Miner | Free Hyp. Railgun | -6/Data Miner | Free Nova Cannon | -6/Data Miner | Free Robot Schematics ------------------ L-41 Fighter | -6/Data Miner | Free M-22 Extractor | -6/Data Miner | Free B-60 Warrior | -6/Data Miner | Free S-27 Virus | -6/Data Miner | Free Fabricated ------------ Nothing Repaired ---------- Lgt. Cannon | 71% | -10/Materials Bore Cannon | 53% | -8/Materials Lgt. Treads | 52% | -8/Materials Lgt. Treads | 58% | -8/Materials Studied --------- None Alien Tech Used ----------------- None Achievements -------------- A Problem For Future Me Analysis Probe Assimilation Complete Bumper Bots Dramatic Entrance Explorer Factory Defaults Heavy Suspicion Hydra I Spy I Survived The Infestation I'm Back, Baby! Into The Breach Join The Dark Side Just Browsing Live, Flee, And Rebuild Look Less Dangerous Next Time Mindtrick More Dakka Please Oh No You Don't! Release The Drones! Resistances Are Futile Sixth Sense Spot Them First Tank The Oracle There's More Where That Came From Thread The Needle Around The Corner Unlikely Earthworm Well Done Challenges ------------ None Game ------ Seed StructuralHellfirePendant Manual? 0 Play Time 06:52:11 Cumulative 23.9 hours Start 2026.03.03 @ 09:13:10 End 2026.04.03 @ 00:41:53 Sessions 7 Manual Loads 0 Difficulty Rogue Special Mode None Game No. 9 Rogue 9 Adventurer 0 Explorer 0 Win Type - Total 0 Types 0/0/0/0/0/0/0/0/0/0 Lore% 18 Gallery% 30 Achievement% 17 Wizard Run 0 Options --------- Layout 2 ASCII 0 Keyboard 1 Movement Numpad Keybinds 1 Fullscreen 2 Font 16/Swanston Map View 55x47 Zoom Use 0% Tactical HUD 1 Map Filters NONE Filters NONE Steam 0 RUN: 09a52ab2-a072-4488-833e-5cf56687089e